[Event "American Cup Blitz 2024"]
[Site "Saint Louis"]
[Date "2024.03.21"]
[Round "5.4"]
[White "Harsha Bharathakoti"]
[Black "Dominguez Perez, Leinier"]
[Result "1/2-1/2"]
[ECO "A14"]
[WhiteElo "2567"]
[BlackElo "2749"]
[Annotator "TA"]
[PlyCount "110"]
[EventDate "2024.03.21"]
[EventType "swiss"]
[EventCountry "USA"]
[SourceTitle "playchess.com"]
[Source "ChessBase"]
[SourceQuality "1"]
[TimeControl "180+2"]

{[%evp 18,110,23,22,16,17,45,29,22,4,12,0,0,0,0,10,0,0,0,-18,-11,-23,-22,-19,-29,-22,-15,-21,-16,-36,-21,-28,-6,-20,0,-39,0,-48,-8,-61,0,0,0,-77,-83,-58,-43,-58,-36,-205,-58,-63,0,-104,0,0,0,-2,0,0,0,0,0,0,0,0,0,0,0,0,0,0,0,0,0,0,0,0,0,0,0,0,0,0,0,0,0,0,0,0,0,0,0,0,0]} 1. c4 {[%emt 0:00:02]} e6 {[%emt 0:00:00]} 2. Nf3 {[%emt 0:00:08]} d5 {[%emt 0:00:01]} 3. g3 {[%emt 0:00:02]} Nf6 {[%emt 0:00:02]} 4. Bg2 {[%emt 0:00:02]} Be7 {[%emt 0:00:01]} 5. O-O {[%emt 0:00:02]} O-O {[%emt 0:00:01]} 6. b3 {[%emt 0:00:04]} c5 {[%emt 0:00:09]} 7. cxd5 {[%emt 0:00:06]} Nxd5 {[%emt 0:00:02]} 8. Bb2 {[%emt 0:00:05]} Nc6 {[%emt 0:00:10]} 9. d4 {[%emt 0:00:03]} cxd4 {[%emt 0:00:03]} 10. Nxd4 {[%emt 0:00:07]} Bd7 {[%emt 0:00:04]} 11. Na3 {[%emt 0:00:21]} Rc8 {[%emt 0:00:13]} 12. Nc4 {[%emt 0:00:13]} Bc5 {[%emt 0:00:02] White has an edge.} 13. Rc1 {[%emt 0:00:19]} Qe7 {[%emt 0:00:02]} 14. e4 {[%emt 0:00:47]} Nb6 {[%emt 0:00:39]} 15. Nxc6 {[%emt 0:00:12]} Bxc6 {[%emt 0:00:02]} 16. Qg4 {[%emt 0:00:14][%csl Gb2][%cal Rg4g7] [#]} f6 {[%emt 0:00:28]} 17. Nxb6 {[%emt 0:00:24]} Bxb6 {[%emt 0:00:02]} 18. Rfd1 {[%emt 0:00:02]} Rcd8 {[%emt 0:00:32]} 19. Rxd8 {[%emt 0:00:12]} Rxd8 {[%emt 0:00:02]} 20. Rd1 {[%emt 0:00:01] Prevents Rd2} Rxd1+ {[%emt 0:00:23]} 21. Qxd1 {[%emt 0:00:01]} Qc5 {[%emt 0:00:14]} 22. Qd2 {[%emt 0:00:01]} e5 {[%emt 0:00:09]} 23. Bf3 {[%emt 0:00:16]} a5 {[%emt 0:00:03]} 24. Kg2 {[%emt 0:00:01]} Kf7 {[%emt 0:00:05]} 25. h4 {[%emt 0:00:01]} h6 {[%emt 0:00:03]} 26. h5 {[%emt 0:00:02]} Ke7 {[%emt 0:00:05]} 27. Qe2 {[%emt 0:00:04]} (27. Bc3 $11 {deserves consideration.}) 27... Ke8 {[%emt 0:00:06]} 28. Qd2 {[%emt 0:00:02]} (28. Bg4 $11) 28... a4 {[%emt 0:00:03]} (28... f5 $15 29. Kg1 (29. exf5 $2 {is the wrong capture.} e4 $19) 29... fxe4) 29. bxa4 $11 {[%emt 0:00:01]} Bxa4 {[%emt 0:00:02]} 30. Qe2 {[%emt 0:00:04]} (30. Bg4 $11) 30... Bb5 $17 {[%emt 0:00:01]} 31. Qd2 {[%emt 0:00:01]} Bc6 {[%emt 0:00:01][%cal Of6f5]} 32. g4 {[%emt 0:00:02]} Qc4 {[%emt 0:00:07]} 33. Qc3 $2 {[%emt 0:00:03] [#]} (33. Ba3 $1 $15) 33... Qxc3 {[%emt 0:00:03]} (33... Qxa2 $19 {aiming for ...Bd4.} 34. Qb4 Qa5) 34. Bxc3 $19 {[%emt 0:00:01][%mdl 4096] Endgame. KBB-KBB} Ke7 {[%emt 0:00:01]} ({Better is} 34... Bc5 $15) 35. Kf1 {[%emt 0:00:02]} (35. Bb4+ $1 $11 {keeps the balance.} Ke6 36. Kf1) 35... Bd4 {[%emt 0:00:04]} ({Black should play} 35... Bc5 $17 36. Bb2 Kd6) 36. Bb4+ $11 {[%emt 0:00:02] The position is equal.} Kf7 {[%emt 0:00:02]} 37. Ke1 {[%emt 0:00:03]} b5 {[%emt 0:00:03]} 38. Bg2 {[%emt 0:00:00]} Bb6 {[%emt 0:00:02]} 39. f3 {[%emt 0:00:01]} Bd7 {[%emt 0:00:02]} 40. Bf1 {[%emt 0:00:02]} Bd4 {[%emt 0:00:02]} 41. Bd3 {[%emt 0:00:00]} Bc6 {[%emt 0:00:03]} 42. Ke2 {[%emt 0:00:02]} Bd7 {[%emt 0:00:01]} 43. Ke1 {[%emt 0:00:01]} g6 {[%emt 0:00:03]} 44. hxg6+ {[%emt 0:00:01]} Kxg6 {[%emt 0:00:01]} 45. Ke2 {[%emt 0:00:03]} h5 {[%emt 0:00:01]} 46. gxh5+ {[%emt 0:00:02]} Kxh5 {[%emt 0:00:01]} 47. Be7 {[%emt 0:00:04]} Kg6 {[%emt 0:00:00]} 48. a3 {[%emt 0:00:02]} Kf7 {[%emt 0:00:02]} 49. Bb4 {[%emt 0:00:02]} Kg6 {[%emt 0:00:02]} 50. Be7 {[%emt 0:00:00]} Be8 {[%emt 0:00:02]} 51. Kf1 {[%emt 0:00:02]} Kf7 {[%emt 0:00:01]} 52. Bb4 {[%emt 0:00:03]} Bc6 {[%emt 0:00:02]} 53. Ke2 {[%emt 0:00:01]} Kg6 {[%emt 0:00:01]} 54. Be7 {[%emt 0:00:01]} Bd7 {[%emt 0:00:01]} 55. Kf1 {[%emt 0:00:04]} Kf7 {[%emt 0:00:08] Weighted Error Value: White=0.22 (precise) /Black=0.18 (very precise) .  Loses game:     	White=1     	---        Mistake:       	White=4     	Black=4      Inaccurate:     	White=1     	Black=3      OK:         	White=17    	Black=14     Best:        	White=2     	---} 1/2-1/2

[Event "American Cup Blitz 2024"]
[Site "Saint Louis"]
[Date "2024.03.21"]
[Round "5.5"]
[White "Le, Quang Liem"]
[Black "Gledura, Benjamin"]
[Result "1/2-1/2"]
[ECO "A17"]
[WhiteElo "2731"]
[BlackElo "2616"]
[Annotator "TA"]
[PlyCount "136"]
[EventDate "2024.03.21"]
[EventType "swiss"]
[EventCountry "USA"]
[SourceTitle "playchess.com"]
[Source "ChessBase"]
[SourceQuality "1"]
[TimeControl "180+2"]

{[%evp 72,136,122,118,113,119,129,3,5,5,5,5,79,0,0,-4,0,0,0,0,0,-8,-8,-8,-8,-8,0,0,0,0,0,0,0,-870,-658,-1576,-1484,-2064,-1690,-1529,0,-1700,-104,-4610,-462,-439,0,-4562,0,-560,-460,-556,0,0,0,0,0,0,0,0,0,0,0,0,0,0,0]} 1. Nf3 {[%emt 0:00:02]} Nf6 {[%emt 0:00:02]} 2. c4 {[%emt 0:00:01]} e6 {[%emt 0:00:05]} 3. Nc3 {[%emt 0:00:02]} d5 {[%emt 0:00:02]} 4. e3 {[%emt 0:00:02]} Bd6 {[%emt 0:00:07]} 5. b3 {[%emt 0:00:03]} O-O {[%emt 0:00:04]} 6. Bb2 {[%emt 0:00:01] A17: Englische Eröffnung.} Nc6 {[%emt 0:00:02]} 7. d4 {[%emt 0:00:10]} dxc4 {[%emt 0:00:03]} 8. Bxc4 {[%emt 0:00:10]} e5 {[%emt 0:00:02]} 9. h3 $146 {[%emt 0:00:34]} ({Predecessor:} 9. dxe5 Nxe5 10. Be2 Nxf3+ 11. Bxf3 Qe7 12. O-O c6 13. Ne2 Be5 14. Bxe5 Qxe5 15. Qd4 {½-½ Nihal,S (2688)-Sjugirov,S (2703) Sharjah Alef Blitz 2023 (6)}) 9... Qe7 {[%emt 0:00:06]} 10. d5 {[%emt 0:00:18]} Nb8 {[%emt 0:00:06]} 11. e4 {[%emt 0:00:03]} a6 {[%emt 0:00:05]} 12. O-O {[%emt 0:00:05]} Nbd7 {[%emt 0:00:11]} 13. Re1 {[%emt 0:00:03]} Nh5 {[%emt 0:00:06]} 14. Bf1 {[%emt 0:00:13]} g6 {[%emt 0:00:25]} 15. g3 {[%emt 0:00:07]} Ng7 {[%emt 0:00:26]} 16. Rc1 {[%emt 0:00:04]} b5 {[%emt 0:00:13]} 17. a4 {[%emt 0:00:07]} b4 {[%emt 0:00:02]} 18. Nb1 {[%emt 0:00:02]} a5 {[%emt 0:00:17]} 19. Nbd2 {[%emt 0:00:04]} Nb6 {[%emt 0:00:01]} 20. Nc4 {[%emt 0:00:26]} Nxc4 {[%emt 0:00:04]} 21. Rxc4 {[%emt 0:00:05]} Ba6 {[%emt 0:00:10]} 22. Rc2 {[%emt 0:00:10]} Bxf1 {[%emt 0:00:02]} 23. Kxf1 {[%emt 0:00:03]} Rae8 {[%emt 0:00:10]} 24. Kg2 {[%emt 0:00:02]} Qd7 {[%emt 0:00:05]} 25. Qd3 {[%emt 0:00:18]} Nh5 {[%emt 0:00:19]} 26. Bc1 {[%emt 0:00:07]} f5 {[%emt 0:00:22]} 27. Ng5 {[%emt 0:00:02]} Ng7 {[%emt 0:00:02]} 28. Rce2 {[%emt 0:00:20]} fxe4 {[%emt 0:00:09]} 29. Rxe4 {[%emt 0:00:05]} Qf5 {[%emt 0:00:06]} 30. R1e2 {[%emt 0:00:03]} h6 {[%emt 0:00:02]} 31. Nf3 {[%emt 0:00:01]} g5 {[%emt 0:00:01]} 32. Nd2 {[%emt 0:00:05]} Nh5 {[%emt 0:00:03]} 33. Nc4 {[%emt 0:00:03]} Nf6 {[%emt 0:00:02]} 34. R4e3 {[%emt 0:00:04]} e4 {[%emt 0:00:02]} 35. Qd4 {[%emt 0:00:02]} Qxd5 {[%emt 0:00:02]} 36. Qxd5+ {[%emt 0:00:03]} Nxd5 {[%emt 0:00:01]} 37. Rxe4 {[%emt 0:00:00]} Rxe4 {[%emt 0:00:02]} 38. Rxe4 {[%emt 0:00:01]} Bc5 {[%emt 0:00:02]} 39. Ne3 {[%emt 0:00:01]} (39. Nxa5 $2 Rxf2+ (39... Bxf2 40. Nc4 $14) 40. Kh1 Rf1+ 41. Kg2 Rg1+ (41... Rxc1 $2 42. Nb7 $19) 42. Kf3 Rxc1 $19) (39. f3 $16) 39... Nxe3+ $11 {[%emt 0:00:02]} 40. Bxe3 {[%emt 0:00:01]} Bxe3 41. Rxe3 {[%emt 0:00:01]} Rf5 {[%emt 0:00:04]} (41... c5 $11) 42. Kf1 {[%emt 0:00:06]} (42. Re6 $16) 42... Rc5 {[%emt 0:00:04]} 43. Ke2 {[%emt 0:00:02]} Kf7 {[%emt 0:00:01]} 44. Kd3 {[%emt 0:00:02]} Kf6 {[%emt 0:00:03]} 45. Kd4 {[%emt 0:00:01]} Rc2 {[%emt 0:00:01]} 46. Rf3+ {[%emt 0:00:04]} Ke6 {[%emt 0:00:01]} 47. Rf8 {[%emt 0:00:03]} c5+ {[%emt 0:00:02]} 48. Ke4 {[%emt 0:00:01]} Rc3 {[%emt 0:00:02]} 49. Ra8 {[%emt 0:00:02]} Rxb3 {[%emt 0:00:02]} 50. Rxa5 {[%emt 0:00:02]} c4 {[%emt 0:00:02]} 51. Ra6+ {[%emt 0:00:00]} Kd7 {[%emt 0:00:01]} 52. Rxh6 $2 {[%emt 0:00:04][%mdl 8192]} (52. Kd5 $11 c3 53. Ra7+ Kd8 54. Kd6) 52... c3 $19 {[%emt 0:00:02]} 53. Kd3 {[%emt 0:00:00]} Rb2 {[%emt 0:00:02]} 54. Rb6 {[%emt 0:00:02]} Rd2+ {[%emt 0:00:05]} (54... Rxf2 55. Rxb4 Rf3+ 56. Kc2 Rxg3 57. Rd4+ Kc6 58. Rd3 Rg2+ 59. Kxc3 $14) 55. Ke3 {[%emt 0:00:01]} Rb2 {[%emt 0:00:01]} 56. Kd3 $1 {[%emt 0:00:00]} Kc7 $2 {[%emt 0:00:01]} (56... Rxf2 57. Rxb4 Rf3+ 58. Kc2 Rxg3 59. Rd4+ Kc7 60. Rd3 $11) (56... c2 $19 {bietet bessere Gewinnchancen.} 57. Rb7+ Kc8 58. Rxb4 c1=Q (58... c1=R $2 59. Rxb2 Rh1 60. Rc2+ Kb8 61. Rc5 $18) 59. Rc4+ Qxc4+ 60. Kxc4 Rxf2) 57. a5 $2 {[%emt 0:00:01][%mdl 8192]} (57. Rb5 $17) 57... Rd2+ {[%emt 0:00:03]} (57... Rxf2 58. Rxb4 Rf3+ 59. Ke4 Rxg3 60. a6 $11) (57... c2 $142 58. Kd2 b3) 58. Ke3 $19 {[%emt 0:00:00]} Rb2 {[%emt 0:00:03]} (58... g4 $142 59. hxg4 (59. Rxb4 $2 {ist das falsche Schlagen.} gxh3 60. Rc4+ Kd7 $19) 59... Rb2) 59. Kd3 $19 {[%emt 0:00:01]} Rb1 $2 {[%emt 0:00:03]} ({Und nicht} 59... Rxf2 60. Rxb4 Rf3+ 61. Kd4 Rxg3 62. Rc4+ Kb8 63. Rxc3 $11) (59... c2 $19 60. Kd2 b3) 60. h4 $2 {[%emt 0:00:03][%mdl 8192]} (60. Kc2 $1 $11 {und Weiss ist OK.} Rb2+ 61. Kc1 (61. Kd3 $2 c2 $19)) 60... gxh4 $19 {[%emt 0:00:02]} 61. gxh4 {[%emt 0:00:00] [#]} Rd1+ $2 {[%emt 0:00:02]} ({Günstiger ist} 61... Rb2 $1 $19 {[%cal Oc3c2] Und ...c2! würde nun gewinnen.} 62. Rb5 Kd6 63. Rb6+ Kc5) 62. Kc2 $11 {[%emt 0:00:03]} Rd2+ {[%emt 0:00:01]} 63. Kc1 {[%emt 0:00:01]} Rb2 {[%emt 0:00:01]} 64. h5 {[%emt 0:00:03]} (64. f4 $5) 64... b3 {[%emt 0:00:02]} 65. h6 {[%emt 0:00:02]} Rc2+ {[%emt 0:00:01]} 66. Kb1 {[%emt 0:00:01]} Rb2+ {[%emt 0:00:01]} 67. Kc1 {[%emt 0:00:00]} Rc2+ {[%emt 0:00:01]} 68. Kb1 {[%emt 0:00:01]} Rb2+ {[%emt 0:00:02]} 1/2-1/2

[Event "American Cup Blitz 2024"]
[Site "Saint Louis"]
[Date "2024.03.21"]
[Round "5.6"]
[White "Kevlishvili, Robby"]
[Black "Sevian, Samuel"]
[Result "0-1"]
[ECO "C07"]
[WhiteElo "2524"]
[BlackElo "2697"]
[Annotator "TA"]
[PlyCount "56"]
[EventDate "2024.03.21"]
[EventType "swiss"]
[EventCountry "USA"]
[SourceTitle "playchess.com"]
[Source "ChessBase"]
[SourceQuality "1"]
[TimeControl "180+2"]

{[%evp 11,56,5,12,12,11,0,10,20,10,0,15,0,0,0,6,16,10,9,14,11,316,50,306,43,55,70,65,4,0,0,0,-25,-10,-45,-30,-189,-198,-339,-326,-849,-804,-1161,-668,-1000,-979,-29976,-6587]} 1. e4 {[%emt 0:00:02]} e6 {[%emt 0:00:02]} 2. d4 {[%emt 0:00:01]} d5 {[%emt 0:00:00]} 3. Nd2 {[%emt 0:00:02]} c5 {[%emt 0:00:06]} 4. Ngf3 {[%emt 0:00:03]} cxd4 {[%emt 0:00:01]} 5. Nxd4 {[%emt 0:00:00]} Nf6 {[%emt 0:00:02]} 6. exd5 {[%emt 0:00:00]} Nxd5 {[%emt 0:00:01]} 7. g3 {[%emt 0:00:04]} Be7 {[%emt 0:00:04]} 8. N2f3 {[%emt 0:00:01]} b6 {[%emt 0:00:08]} 9. Bb5+ {[%emt 0:00:22] The position is equal.} Bd7 {[%emt 0:00:02]} 10. Bd3 {[%emt 0:00:01]} Nc6 {[%emt 0:00:11]} 11. Nxc6 {[%emt 0:00:30]} Bxc6 {[%emt 0:00:01]} 12. Ne5 {[%emt 0:00:02]} Bb7 {[%emt 0:00:08] Hoping for ...Qc7.} 13. Bb5+ {[%emt 0:00:03]} Kf8 {[%emt 0:00:01] ...Qc7 would now be deadly.} 14. Qh5 {[%emt 0:00:39][%csl Ge5][%cal Rh5f7]} g6 {[%emt 0:00:01]} 15. Qf3 {[%emt 0:00:07][%csl Ge5][%cal Rf3f7]} f6 {[%emt 0:00:18][%mdl 8192]} (15... Bf6 $1 $11 16. Nd7+ Kg8) 16. Bh6+ $18 {[%emt 0:00:01]} Kg8 {[%emt 0:00:01]} 17. Nc6 {[%emt 0:00:24]} (17. Bd7 $1 $18 {[%cal Rd7e6]} Bc8 18. Bc6) 17... Qd6 {[%emt 0:00:27]} 18. Nxe7+ {[%emt 0:00:11]} Qxe7 {[%emt 0:00:02]} 19. O-O {[%emt 0:00:13]} (19. O-O-O $14) 19... Rc8 $11 {[%emt 0:00:18]} 20. c4 {[%emt 0:00:21]} Nb4 {[%emt 0:00:19]} 21. Qe2 {[%emt 0:00:06]} Kf7 {[%emt 0:00:11]} 22. Rfe1 {[%emt 0:00:11]} Rhd8 {[%emt 0:00:09] Threatens to win with ...a6.} 23. h4 $2 {[%emt 0:00:10]} (23. Rad1 $11) 23... Nd3 $19 {[%emt 0:00:05][%cal Od3e5] Active counter play!} 24. Rf1 {[%emt 0:00:08]} (24. Red1 $142 Ne5 25. Qe3) 24... Ne5 {[%emt 0:00:19] aiming for ...Nf3+.} 25. f4 $2 {[%emt 0:00:05]} (25. f3 Qb4 (25... a6 $2 26. Ba4 $19) 26. Bf4) 25... Qc5+ {[%emt 0:00:01]} 26. Kh2 {[%emt 0:00:01] [#]} Bf3 $1 {[%emt 0:00:08][%mdl 512]} 27. Rxf3 {[%emt 0:00:03] [#]} (27. Qe1 Ng4+) 27... Rd2 $3 {[%emt 0:00:01][%mdl 512]} 28. Re3 {[%emt 0:00:03]} (28. Rf2 Ng4+) 28... Qxe3 {[%emt 0:00:03] Quite a comeback for Black.   Weighted Error Value: White=1.25/Black=0.50.  Loses game:     	---       	Black=2      Missed win:     	White=1     	---        Mistake:       	White=4     	---        Inaccurate:     	White=2     	---        OK:         	White=7     	Black=8      Best:        	White=1     	Black=4} 0-1

[Event "American Cup Blitz 2024"]
[Site "Saint Louis"]
[Date "2024.03.21"]
[Round "5.7"]
[White "Oparin, Grigoriy"]
[Black "Quesada Perez, Yuniesky"]
[Result "1-0"]
[ECO "D00"]
[WhiteElo "2671"]
[BlackElo "2591"]
[Annotator "TA"]
[PlyCount "97"]
[EventDate "2024.03.21"]
[EventType "swiss"]
[EventCountry "USA"]
[SourceTitle "playchess.com"]
[Source "ChessBase"]
[SourceQuality "1"]
[TimeControl "180+2"]

{[%evp 9,97,0,57,16,6,10,65,75,66,66,72,70,84,86,76,70,80,91,85,57,58,47,58,52,53,55,83,47,58,37,131,90,127,112,158,167,158,59,107,101,106,89,114,111,160,118,138,136,147,139,141,147,145,144,145,143,139,131,124,116,172,89,85,89,85,33,34,33,33,33,76,74,83,49,61,10,90,46,97,102,787,787,762,762,747,740,646,623,597,590]} 1. d4 {[%emt 0:00:01]} Nf6 {[%emt 0:00:02]} 2. Nc3 {[%emt 0:00:02]} d5 {[%emt 0:00:12]} 3. Bf4 {[%emt 0:00:02]} a6 {[%emt 0:00:05]} 4. e3 {[%emt 0:00:01]} c5 {[%emt 0:00:09]} 5. dxc5 {[%emt 0:00:28]} Nc6 {[%emt 0:00:17]} ({Better is} 5... Qa5 $11) 6. Nf3 {[%emt 0:00:06]} e6 {[%emt 0:00:17]} 7. Na4 {[%emt 0:00:17]} Ne4 {[%emt 0:00:35]} (7... Bxc5 $11 8. Nxc5 Qa5+ 9. c3 Qxc5) 8. Nb6 $14 {[%emt 0:00:26] White is slightly better.} Ra7 {[%emt 0:00:01]} 9. Nxc8 {[%emt 0:00:12]} Qxc8 {[%emt 0:00:04]} 10. c4 {[%emt 0:00:04]} dxc4 {[%emt 0:00:35]} 11. Bxc4 {[%emt 0:00:06]} Bxc5 {[%emt 0:00:02]} 12. O-O {[%emt 0:00:05]} O-O {[%emt 0:00:03]} 13. Qc2 {[%emt 0:00:08]} (13. Rc1 {with more complications.} Rd8 14. Bd3 Be7 15. Ne5) 13... Nf6 {[%emt 0:00:16]} 14. a3 $36 {[%emt 0:00:06][%cal Oc4e6][%mdl 2048] Black is under pressure.} Be7 {[%emt 0:00:03]} 15. Rac1 {[%emt 0:00:04]} Rd8 {[%emt 0:00:07]} 16. Bd3 {[%emt 0:00:08]} Ra8 {[%emt 0:00:08]} 17. Rfd1 {[%emt 0:00:03]} h6 {[%emt 0:00:03]} 18. h3 {[%emt 0:00:02]} Nd5 {[%emt 0:00:06]} 19. Bg3 {[%emt 0:00:04]} Nf6 {[%emt 0:00:08]} ({Black should try} 19... Bd6 $14) 20. Qe2 {[%emt 0:00:09]} Kf8 {[%emt 0:00:03]} 21. Ne5 {[%emt 0:00:06]} Bd6 {[%emt 0:00:09]} (21... a5 $142 22. Rc3 Bd6) 22. Nxc6 $16 {[%emt 0:00:06]} bxc6 {[%emt 0:00:01]} 23. Bh4 {[%emt 0:00:05] A strong pair of Bishops.} (23. Bxa6 $1 $16 Qxa6 24. Qxa6 (24. Bxd6+ $2 Rxd6 25. Qc2 Rd5 $19) 24... Rxa6 25. Rxd6 (25. Bxd6+ Ke8 $18)) 23... Qb7 {[%emt 0:00:03]} (23... g5 $14) 24. Bxf6 {[%emt 0:00:29]} gxf6 {[%emt 0:00:00]} 25. Be4 {[%emt 0:00:01]} Rac8 {[%emt 0:00:03]} 26. b4 {[%emt 0:00:15]} f5 {[%emt 0:00:01]} (26... Ke7 $142) 27. Bf3 {[%emt 0:00:01]} Qb6 {[%emt 0:00:02]} 28. Qb2 {[%emt 0:00:07]} Kg8 {[%emt 0:00:01] Against Rxd6} 29. Qf6 {[%emt 0:00:01][%cal Og2g4] Repels Be7} Bf8 {[%emt 0:00:01] [#]} 30. Rxd8 $1 {[%emt 0:00:04]} Qxd8 {[%emt 0:00:04]} 31. Qxd8 Rxd8 {[%emt 0:00:01][%cal Bc8d8,Bd8d6,Bd6d3][%mdl 32]} 32. Rxc6 {[%emt 0:00:03][%mdl 4096] Endgame. KRB-KRB} (32. Bxc6 Rd3 $16) 32... Rd6 {[%emt 0:00:03]} 33. Rc7 {[%emt 0:00:05]} Rd3 {[%emt 0:00:12]} 34. Bh5 {[%emt 0:00:02]} Kh8 {[%emt 0:00:02]} (34... Rxa3 $16 35. Bxf7+ (35. Rxf7 Ra1+ 36. Kh2 Bd6+ 37. g3 Bxb4 $11) 35... Kh8) 35. g3 {[%emt 0:00:05]} ({White should play} 35. Rxf7 $18 Bd6 36. Rf6 Rxa3 37. g4 (37. Rxh6+ Kg7 $18)) 35... Rxa3 {[%emt 0:00:02]} 36. Bxf7 {[%emt 0:00:02]} e5 {[%emt 0:00:03]} 37. Bg6 {[%emt 0:00:04]} (37. Rc4 $16) 37... f4 $1 $14 {[%emt 0:00:01]} 38. gxf4 {[%emt 0:00:03]} exf4 {[%emt 0:00:01]} 39. exf4 {[%emt 0:00:01]} Bxb4 {[%emt 0:00:02][%cal Ob4d6]} 40. f5 {[%emt 0:00:00]} Bc3 {[%emt 0:00:03] Prevents f6.} 41. Rf7 {[%emt 0:00:05] White has more active pieces.} Kg8 {[%emt 0:00:03]} 42. f6 {[%emt 0:00:02]} (42. Kg2 $14) 42... Be5 {[%emt 0:00:02]} (42... Bd4 $11 43. Rg7+ Kf8) 43. Kg2 {[%emt 0:00:02]} Ra4 {[%emt 0:00:03]} (43... Rc3 $14) 44. Rg7+ $16 {[%emt 0:00:01]} Kf8 $2 {[%emt 0:00:01][%mdl 8192] Black cannot hold the game after this.} (44... Kh8 $16) 45. Re7 {[%emt 0:00:01][%csl Gg6][%cal Re7e8] [#] White is clearly winning.} Bxf6 {[%emt 0:00:03]} 46. Rf7+ {[%emt 0:00:00]} Kg8 {[%emt 0:00:04]} 47. Rxf6 {[%emt 0:00:02]} Kg7 {[%emt 0:00:01]} 48. Rb6 {[%emt 0:00:00]} a5 {[%emt 0:00:02]} 49. Ra6 {[%emt 0:00:01] Weighted Error Value: White=0.20 (precise) /Black=0.25 (precise) .  Loses game:     	---       	Black=1      Mistake:       	White=4     	Black=8      Inaccurate:     	White=5     	Black=3      OK:         	White=12    	Black=9      Best:        	White=3     	Black=3      Strong:       	White=1     	Black=1} 1-0